fUSD/lending_fUSD_20260404
["ID","MTS","AMOUNT","RATE_DAILY","PERIOD"]
[419723619,1775335856771,-477.132427,0.00019178,2]
[419723620,1775335856780,-477.132427,0.00019178,2]
[419723621,1775335856790,-477.132427,0.00019178,2]
[419723622,1775335856799,-477.132427,0.00019178,2]
[419723623,1775335856808,-477.132427,0.00019178,2]
[419723624,1775335856818,-477.132427,0.00019178,2]
[419723625,1775335856827,-9138.347163,0.00019178,2]
[419723626,1775335856836,-9138.347163,0.00019178,2]
[419723627,1775335856845,-9138.347163,0.00019178,2]
[419723628,1775335856855,-9138.347163,0.00019178,2]
[419723629,1775335856864,-9138.347163,0.00019178,2]
[419723630,1775335856873,-9138.347163,0.00019178,2]
[419723631,1775335856883,-9138.347163,0.00019178,2]
[419723632,1775335856892,-9138.347163,0.00019178,2]
[419723633,1775335856902,-172.98190933,0.00019178,2]
[419723634,1775335856911,-1500.0,0.00019178,2]
[419723635,1775335856920,-150.0,0.00019178,2]
[419723636,1775335856930,-150.0,0.00019178,2]
[419723637,1775335856939,-155.0,0.00019199,2]
[419723638,1775335856949,-150.16323315,0.000192,2]
[419723639,1775335856959,-462.28112601,0.00019288,2]
[419723640,1775335856968,-180.22082836,0.00019305,2]
[419723641,1775335856978,-1044.0,0.00019516,2]
[419723642,1775335856987,-154.78244338,0.00019602,2]
[419723643,1775335856996,-250.33769746,0.00019726,2]
[419723644,1775335857006,-250.0,0.00019726,2]
[419723645,1775335857017,-1115.0,0.00019739,2]
[419723646,1775335857026,-492.61081,0.00019843,7]
[419723647,1775335857035,-161.596665,0.00019843,7]
[419723648,1775335857044,-617.018501,0.0002,2]
[419723649,1775335857054,-33248.8450785,0.0002,2]
[419723650,1775335857063,-1052.76030352,0.0002,2]
[419723651,1775335857072,-2884.91365512,0.0002,2]
[419723652,1775335857082,-13021.27930645,0.0002,2]
[419723653,1775335857091,-152.0,0.0002,2]
[419723654,1775335857100,-856.46690184,0.0002,2]
[419723655,1775335857110,-350.0,0.0002,3]
[419723656,1775335857119,-200.0,0.0002,10]
[419723657,1775335857129,-200.0,0.0002,2]
[419723658,1775335857138,-523.59171,0.00020003,7]
[419723659,1775335857148,-182.02,0.00020005,2]
[419723660,1775335857158,-960.1,0.00020045,2]
[419723661,1775335857172,-1927.43,0.00020054,2]
[419723662,1775335857182,-904.536895,0.0002007,2]
[419723663,1775335857193,-913.24725,0.0002007,2]
[419723664,1775335857202,-2000.0,0.000201,2]
[419723665,1775335857213,-300.0,0.000201,10]
[419723666,1775335857223,-1172.279816,0.0002018,2]
[419723667,1775335857232,-150.0,0.00020192,2]
[419723668,1775335857242,-182.02,0.00020271,2]
[419723669,1775335857251,-350.0,0.00020274,2]
[419723670,1775335857260,-166.66,0.0002033,2]
[419723671,1775335857270,-578.713087,0.00020384,7]
[419723672,1775335857280,-1014.0,0.00020418,2]
[419723673,1775335857289,-348.86662286,0.0002049,2]
[419723674,1775335857299,-182.02,0.00020536,2]
[419723675,1775335857310,-21700.21,0.00020548,2]
[419723676,1775335857319,-2000.0,0.00020548,2]
[419723677,1775335857328,-183.74,0.00020654,7]
[419723678,1775335857338,-22835.56332913,0.000207,2]
[419723679,1775335857348,-1572.0,0.00020738,2]
[419723680,1775335857358,-275.17,0.00020764,2]
[419723681,1775335857367,-1115.0,0.00020778,2]
[419723682,1775335857377,-3521.0,0.00020802,2]
[419723683,1775335857387,-622.0,0.00020802,2]
[419723684,1775335857398,-1046.0,0.00020802,2]
[419723685,1775335857408,-150.0,0.00020802,2]
[419723686,1775335857417,-6019.0,0.00020802,2]
[419723687,1775335857427,-341.822,0.00020802,2]
[419723688,1775335857436,-3769.0,0.00020802,2]
[419723689,1775335857445,-450.0,0.00020822,2]
[419723690,1775335857454,-515.0,0.00020829,8]
[419723691,1775335857463,-500.0,0.00021,2]
[419723692,1775335857472,-300.0,0.00021,2]
[419723693,1775335857481,-10759.52389459,0.00021,2]
[419723694,1775335857490,-450.0,0.00021,2]
[419723695,1775335857499,-166.66,0.00021001,2]
[419723696,1775335857511,-154.78244338,0.0002111,2]
[419723697,1775335857520,-313.0,0.000212,2]
[419723698,1775335857530,-313.0,0.000212,2]
[419723699,1775335857541,-200.0,0.000212,2]
[419723700,1775335857550,-306.0,0.000212,2]
[419723701,1775335857559,-1000.0,0.000212,2]
[419723702,1775335857568,-772.71,0.00021279,2]
[419723703,1775335857578,-1859.4,0.00021369,2]
[419723704,1775335857587,-550.0,0.0002137,2]
[419723705,1775335857597,-526.0,0.000214,5]
[419723706,1775335857608,-578.20924308,0.00021523,2]
[419723707,1775335857617,-209.40437684,0.00021523,2]
[419723708,1775335857627,-500.0,0.00021523,2]
[419723709,1775335857636,-9552.16786547,0.00021523,2]
[419723710,1775335857648,-500.0,0.00021523,2]
[419723711,1775335857659,-1428.38747117,0.00021523,2]
[419723712,1775335857668,-200.0,0.00021523,2]
[419723713,1775335857678,-500.0,0.00021523,2]
[419723714,1775335857687,-500.0,0.00021523,2]
[419723715,1775335857697,-500.0,0.00021523,2]
[419723716,1775335857707,-250.0,0.00021523,2]
[419723717,1775335857716,-500.0,0.00021523,2]
[419723718,1775335857726,-250.0,0.00021523,2]
[419723719,1775335857736,-500.0,0.00021523,2]
[419723720,1775335857746,-250.0,0.00021523,2]
[419723721,1775335857755,-500.0,0.00021523,2]
[419723722,1775335857764,-250.0,0.00021523,2]
[419723723,1775335857773,-500.0,0.00021523,2]
[419723724,1775335857783,-250.0,0.00021523,2]
[419723725,1775335857793,-500.0,0.00021523,2]
[419723726,1775335857803,-250.0,0.00021523,2]
[419723727,1775335857812,-500.0,0.00021523,2]
[419723728,1775335857821,-250.0,0.00021523,2]
[419723729,1775335857831,-500.0,0.00021523,2]
[419723730,1775335857840,-250.0,0.00021523,2]
[419723731,1775335857849,-250.0,0.00021523,2]
[419723732,1775335857859,-250.0,0.00021523,2]
[419723733,1775335857868,-250.0,0.00021523,2]
[419723734,1775335857877,-151.0,0.00021523,2]
[419723735,1775335857886,-743.50770149,0.00021523,2]
[419723736,1775335857896,-500.0,0.00021523,2]
[419723737,1775335857906,-174.61919141,0.00021523,2]
[419723738,1775335857916,-500.0,0.00021523,2]
[419723739,1775335857925,-500.0,0.00021523,2]
[419723740,1775335857934,-200.0,0.00021523,2]
[419723741,1775335857943,-500.0,0.00021523,2]
[419723742,1775335857954,-500.0,0.00021523,2]
[419723743,1775335857963,-500.0,0.00021523,2]
[419723744,1775335857972,-500.0,0.00021523,2]
[419723745,1775335857983,-500.0,0.00021523,2]
[419723746,1775335857991,-500.0,0.00021523,2]
[419723747,1775335858000,-500.0,0.00021523,2]
[419723748,1775335858010,-500.0,0.00021523,2]
[419723749,1775335858019,-693.3919763,0.00021523,2]
[419723750,1775335858029,-170.0,0.00021523,2]
[419723751,1775335858039,-170.0,0.00021523,2]
[419723752,1775335858048,-170.0,0.00021523,2]
[419723753,1775335858057,-279.9045709,0.00021523,2]
[419723754,1775335858066,-170.0,0.00021523,2]
[419723755,1775335858076,-170.0,0.00021523,2]
[419723756,1775335858085,-170.0,0.00021523,2]
[419723757,1775335858094,-170.0,0.00021523,2]
[419723758,1775335858103,-170.0,0.00021523,2]
[419723759,1775335858112,-170.0,0.00021523,2]
[419723760,1775335858122,-170.0,0.00021523,2]
[419723761,1775335858132,-170.0,0.00021523,2]
[419723762,1775335858142,-500.0,0.00021578,2]
[419723763,1775335858152,-9905.5980765,0.00021578,2]
[419723764,1775335858162,-151.0,0.00021578,2]
[419723765,1775335858172,-500.0,0.00021633,2]
[419723766,1775335858181,-10272.10520533,0.00021633,2]
[419723767,1775335858191,-151.0,0.00021633,2]
[419723768,1775335858200,-166.66,0.00021672,2]
[419723769,1775335858209,-500.0,0.00021688,2]
[419723770,1775335858219,-10652.17309792,0.00021688,2]
[419723771,1775335858228,-151.0,0.00021688,2]
[419723772,1775335858238,-1572.0,0.0002172,2]
[419723773,1775335858247,-500.0,0.00021743,2]
[419723774,1775335858256,-11046.30350255,0.00021743,2]
[419723775,1775335858266,-151.0,0.00021743,2]
[419723776,1775335858276,-500.0,0.00021798,2]
[419723777,1775335858285,-11455.01673214,0.00021798,2]
[419723778,1775335858294,-151.0,0.00021798,2]
[419723779,1775335858304,-150.0,0.00021803,2]
[419723780,1775335858314,-150.0,0.00021803,2]
[419723781,1775335858323,-960.1,0.00021848,2]
[419723782,1775335858332,-500.0,0.00021853,2]
[419723783,1775335858342,-11878.85235123,0.00021853,2]
[419723784,1775335858351,-151.0,0.00021853,2]
[419723785,1775335858360,-1115.0,0.00021871,2]
[419723786,1775335858369,-500.0,0.00021908,2]
[419723787,1775335858378,-12318.36988823,0.00021908,2]
[419723788,1775335858388,-151.0,0.00021908,2]
[419723789,1775335858397,-5000.0,0.00021918,2]
[419723790,1775335858406,-151.0,0.00021918,2]
[419723791,1775335858415,-151.0,0.00021918,2]
[419723792,1775335858425,-181.128449,0.00021918,2]
[419723793,1775335858435,-2500.0,0.00021918,2]
[419723794,1775335858443,-250.80263284,0.00021918,2]
[419723795,1775335858453,-500.0,0.00021963,2]
[419723796,1775335858462,-12774.14957409,0.00021963,2]
[419723797,1775335858471,-151.0,0.00021963,2]
[419723798,1775335858481,-1747.0,0.00022,2]
[419723799,1775335858490,-530.0,0.00022,2]
[419723800,1775335858499,-279.0,0.00022,2]
[419723801,1775335858508,-270.0,0.00022,2]
[419723802,1775335858518,-153.0,0.00022,2]
[419723803,1775335858527,-470.0,0.00022,2]
[419723804,1775335858536,-840.0,0.00022,2]
[419723805,1775335858546,-500.0,0.00022018,2]
[419723806,1775335858555,-7338.03711986,0.00022018,2]
[419723807,1775335858564,-151.0,0.00022018,2]
[419723808,1775335858574,-347.06533128,0.00022071,2]
[419723809,1775335858584,-1481.23780761,0.00022071,2]
[419723810,1775335858594,-200.0,0.00022071,2]
[419723811,1775335858604,-771.01748645,0.00022071,2]
[419723812,1775335858613,-181.08010149,0.00022071,2]
[419723813,1775335858623,-200.0,0.00022071,2]
[419723814,1775335858633,-713.72003476,0.00022071,2]
[419723815,1775335858642,-290.26104003,0.00022071,2]
[419723816,1775335858651,-500.0,0.00022073,2]
[419723817,1775335858661,-151.0,0.00022073,2]
[419723818,1775335858670,-1148.0,0.0002223,10]
[419723819,1775335858680,-692.0,0.0002223,10]
[419723820,1775335858689,-166.66,0.00022343,2]
[419723821,1775335858699,-155.0,0.00022399,2]
[419723822,1775335858708,-316.69,0.00022399,2]
[419723823,1775335858718,-3776.44,0.00022399,2]
[419723824,1775335858728,-500.0,0.00022411,2]
[419723825,1775335858738,-1562.0,0.00022564,5]
[419723826,1775335858749,-1595.0,0.00022564,5]
[419723827,1775335858759,-1559.0,0.00022564,5]
[419723828,1775335858768,-166.08,0.00022603,2]
[419723829,1775335858778,-154.78244341,0.00022618,2]
[419723830,1775335858787,-1536.04360649,0.00022619,2]
[419723831,1775335858797,-200.0,0.00022619,2]
[419723832,1775335858807,-799.54513345,0.00022619,2]
[419723833,1775335858817,-187.78006525,0.00022619,2]
[419723834,1775335858827,-200.0,0.00022619,2]
[419723835,1775335858837,-301.00069851,0.00022619,2]
[419723836,1775335858858,-5989.36,0.0002274,2]
[419723837,1775335858870,-187.661261,0.00022896,14]
[419723838,1775335858881,-275.17,0.00022927,2]
[419723839,1775335858891,-500.0,0.00023,2]
[419723840,1775335858901,-57509.28103166,0.00023,2]
[419723841,1775335858911,-500.0,0.00023,2]
[419723842,1775335858920,-1747.0,0.00023,2]
[419723843,1775335858930,-530.0,0.00023,2]
[419723844,1775335858940,-279.0,0.00023,2]
[419723845,1775335858950,-270.0,0.00023,2]
[419723846,1775335858959,-153.0,0.00023,2]
[419723847,1775335858969,-470.0,0.00023,2]
[419723848,1775335858979,-840.0,0.00023,2]
[419723849,1775335858989,-1791.38,0.00023013,2]
[419723850,1775335858998,-166.66,0.00023014,2]
[419723851,1775335859008,-1115.0,0.00023023,2]
[419723852,1775335859019,-199.463508,0.0002308,14]
[419723853,1775335859030,-764.52,0.00023108,2]
[419723854,1775335859040,-344.585483,0.00023158,14]
[419723855,1775335859051,-347.903714,0.00023158,14]
[419723856,1775335859062,-1592.87721993,0.00023167,2]
[419723857,1775335859073,-200.0,0.00023167,2]
[419723858,1775335859084,-829.12830338,0.00023167,2]
[419723859,1775335859094,-194.72792766,0.00023167,2]
[419723860,1775335859105,-200.0,0.00023167,2]
[419723861,1775335859115,-170.76089503,0.00023167,2]
[419723862,1775335859126,-446.582787,0.00023285,14]
[419723863,1775335859136,-500.0,0.00023288,2]
[419723864,1775335859146,-515.0,0.00023402,10]
[419723865,1775335859157,-220.462128,0.0002352,14]
[419723866,1775335859167,-960.1,0.00023651,2]
[419723867,1775335859177,-166.66,0.00023685,2]
[419723868,1775335859188,-8092.03795977,0.00023702,2]
[419723869,1775335859199,-412.22409135,0.00023702,2]
[419723870,1775335859209,-1651.81367706,0.00023715,2]
[419723871,1775335859219,-200.0,0.00023715,2]
[419723872,1775335859230,-859.80605061,0.00023715,2]
[419723873,1775335859241,-201.93286099,0.00023715,2]
[419723874,1775335859252,-207.78425205,0.00023715,2]
[419723875,1775335859262,-168.29,0.00023737,2]
[419723876,1775335859272,-168.29,0.00023737,2]
[419723877,1775335859283,-168.33,0.00023737,2]
[419723878,1775335859293,-2000.0,0.000238,2]
[419723879,1775335859303,-3521.0,0.00023802,2]
[419723880,1775335859314,-622.0,0.00023802,2]
[419723881,1775335859325,-1046.0,0.00023802,2]
[419723882,1775335859335,-6019.0,0.00023802,2]
[419723883,1775335859345,-3769.0,0.00023802,2]
[419723884,1775335859356,-1747.0,0.00024,2]
[419723885,1775335859366,-530.0,0.00024,2]
[419723886,1775335859376,-279.0,0.00024,2]
[419723887,1775335859386,-270.0,0.00024,2]
[419723888,1775335859398,-153.0,0.00024,2]
[419723889,1775335859409,-470.0,0.00024,2]
[419723890,1775335859420,-840.0,0.00024,2]
[419723891,1775335859431,-500.0,0.00024137,2]
[419723892,1775335859442,-900.0,0.00024151,2]
[419723893,1775335859454,-1115.0,0.00024174,2]
[419723894,1775335859464,-348.86662286,0.00024247,2]
[419723895,1775335859473,-310.4251096,0.00024262,2]
[419723896,1775335859483,-1712.93078312,0.00024263,2]
[419723897,1775335859493,-200.0,0.00024263,2]
[419723898,1775335859505,-891.61887448,0.00024263,2]
[419723899,1775335859516,-209.40437684,0.00024263,2]
[419723900,1775335859528,-15000.0,0.0002427,3]
[419723901,1775335859538,-1000.0,0.00024658,2]
[419723902,1775335859548,-281.07,0.00024658,2]
[419723903,1775335859559,-150.0,0.00024658,2]
[419723904,1775335859569,-164.94652892,0.00024658,2]
[419723905,1775335859581,-171.55,0.00024658,30]
[419723906,1775335859592,-150.0,0.00024803,2]
[419723907,1775335859602,-200.0,0.00024811,2]
[419723908,1775335859614,-924.60877284,0.00024811,2]
[419723909,1775335859626,-217.15233878,0.00024811,2]
[419723910,1775335859636,-150.0,0.00024899,2]
[419723911,1775335859648,-150.0,0.00024899,2]
[419723912,1775335859658,-150.0,0.00024899,2]
[419723913,1775335859669,-150.0,0.00024899,2]
[419723914,1775335859679,-150.0,0.00024899,2]
[419723915,1775335859688,-150.0,0.00024899,2]
[419723916,1775335859698,-150.0,0.00024899,2]
[419723917,1775335859708,-150.0,0.00024899,2]
[419723918,1775335859717,-150.0,0.00024899,2]
[419723919,1775335859727,-150.0,0.00024899,2]
[419723920,1775335859737,-150.0,0.00024899,2]
[419723921,1775335859747,-150.0,0.00024899,2]
[419723922,1775335859756,-150.0,0.00024899,2]
[419723923,1775335859766,-194.69023349,0.00024899,2]
[419723924,1775335859777,-250.0,0.00025,2]
[419723925,1775335859787,-300.0,0.00025,2]
[419723926,1775335859796,-3073.13,0.00025,2]
[419723927,1775335859807,-1747.0,0.00025,2]
[419723928,1775335859816,-530.0,0.00025,2]
[419723929,1775335859827,-279.0,0.00025,2]
[419723930,1775335859836,-1339.26898515,0.00025,4]
[419723931,1775335859847,-270.0,0.00025,2]
[419723932,1775335859856,-153.0,0.00025,2]
[419723933,1775335859866,-470.0,0.00025,2]
[419723934,1775335859876,-840.0,0.00025,2]
[419723935,1775335859886,-275.17,0.0002509,2]
[419723936,1775335859896,-291.68,0.00025109,2]
[419723937,1775335859906,-2697.45,0.00025109,2]
[419723938,1775335859916,-200.0,0.00025359,2]
[419723939,1775335859927,-824.86496527,0.00025359,2]
[419723940,1775335859937,-225.18697532,0.00025359,2]
[419723941,1775335859947,-1115.0,0.00025382,2]
[419723942,1775335859957,-438.838836,0.0002539,2]
[419723943,1775335859967,-960.1,0.00025454,2]
[419723944,1775335859977,-1723.35,0.00025479,2]
[419723945,1775335859987,-150.0,0.0002589,2]
[419723946,1775335859998,-200.0,0.00025907,2]
[419723947,1775335860009,-233.51889341,0.00025907,2]
[419723948,1775335860020,-200.0,0.00025927,2]
[419723949,1775335860031,-515.0,0.00025974,13]
[419723950,1775335860041,-1747.0,0.00026,2]
[419723951,1775335860052,-530.0,0.00026,2]
[419723952,1775335860064,-279.0,0.00026,2]
[419723953,1775335860075,-270.0,0.00026,2]
[419723954,1775335860085,-171.21207125,0.00026,2]
[419723955,1775335860095,-470.0,0.00026,2]
[419723956,1775335860105,-840.0,0.00026,2]
[419723957,1775335860115,-250.0,0.00026027,2]
[419723958,1775335860126,-380.0,0.00026027,2]
[419723959,1775335860136,-150.0,0.00026027,2]
[419723960,1775335860146,-264.0,0.00026027,2]
[419723961,1775335860155,-250.0,0.00026027,2]
[419723962,1775335860167,-250.0,0.00026027,2]
[419723963,1775335860176,-245.0,0.00026027,2]
[419723964,1775335860186,-343.33413522,0.00026397,2]
[419723965,1775335860197,-200.0,0.00026455,2]
[419723966,1775335860207,-242.15909246,0.00026455,2]
[419723967,1775335860216,-1115.0,0.00026651,2]
[419723968,1775335860227,-412.04396,0.00026802,2]
[419723969,1775335860237,-412.04396,0.00026802,2]
[419723970,1775335860248,-412.04396,0.00026802,2]
[419723971,1775335860259,-412.04396,0.00026802,2]
[419723972,1775335860269,-3521.0,0.00026802,2]
[419723973,1775335860279,-622.0,0.00026802,2]
[419723974,1775335860290,-1046.0,0.00026802,2]
[419723975,1775335860300,-1404.765,0.00026802,2]
[419723976,1775335860310,-2268.325,0.00026802,2]
[419723977,1775335860320,-3688.94579177,0.00026969,2]
[419723978,1775335860330,-2000.0,0.00027,2]
[419723979,1775335860341,-1753.94682729,0.00027,2]
[419723980,1775335860351,-540.41715037,0.00027,2]
[419723981,1775335860361,-298.75979707,0.00027,2]
[419723982,1775335860371,-288.37753119,0.00027,2]
[419723983,1775335860380,-484.17354607,0.00027,2]
[419723984,1775335860391,-846.40686756,0.00027,2]
[419723985,1775335860401,-200.0,0.00027003,2]
[419723986,1775335860411,-251.11897888,0.00027003,2]
[419723987,1775335860421,-2533.58455,0.0002701,2]
[419723988,1775335860431,-150.0,0.00027185,2]
[419723989,1775335860441,-275.17,0.00027253,2]
[419723990,1775335860451,-960.1,0.00027257,2]
[419723991,1775335860462,-172.39,0.00027309,13]
[419723992,1775335860472,-172.39,0.00027309,13]
[419723993,1775335860483,-172.39,0.00027309,13]
[419723994,1775335860494,-172.38,0.00027309,13]
[419723995,1775335860505,-792.92307692,0.0002737,2]
[419723996,1775335860517,-645.0,0.0002737,2]
[419723997,1775335860528,-851.53846154,0.0002737,2]
[419723998,1775335860538,-720.23076923,0.0002737,2]
[419723999,1775335860548,-1000.0,0.00027397,120]
[419724000,1775335860558,-300.0,0.00027397,2]
[419724001,1775335860568,-281.07,0.00027397,2]
[419724002,1775335860580,-1000.0,0.00027397,20]
[419724003,1775335860590,-505.720137,0.00027397,2]
[419724004,1775335860600,-505.720137,0.00027397,2]
[419724005,1775335860612,-505.720137,0.00027397,2]
[419724006,1775335860623,-505.720137,0.00027397,2]
[419724007,1775335860634,-505.720137,0.00027397,2]
[419724008,1775335860644,-505.720137,0.00027397,2]
[419724009,1775335860655,-505.720137,0.00027397,2]
[419724010,1775335860664,-505.720137,0.00027397,2]
[419724011,1775335860674,-343.48009,0.00027397,2]
[419724012,1775335860684,-343.48009,0.00027397,2]
[419724013,1775335860695,-343.48009,0.00027397,2]
[419724014,1775335860705,-343.48009,0.00027397,2]
[419724015,1775335860715,-343.48009,0.00027397,2]
[419724016,1775335860724,-343.48009,0.00027397,2]
[419724017,1775335860734,-343.48009,0.00027397,2]
[419724018,1775335860744,-343.48009,0.00027397,2]
[419724019,1775335860755,-1458.19,0.00027397,10]
[419724020,1775335860764,-161.08,0.00027462,14]
[419724021,1775335860775,-161.08,0.00027462,14]
[419724022,1775335860784,-161.08,0.00027462,14]
[419724023,1775335860794,-161.06,0.00027462,14]
[419724024,1775335860804,-2000.0,0.000275,2]
[419724025,1775335860814,-260.4103811,0.00027551,2]
[419724026,1775335860824,-1572.0,0.0002772,3]
[419724027,1775335860835,-2810.0,0.0002772,3]
[419724028,1775335860846,-172.39,0.00027857,13]
[419724029,1775335860857,-172.39,0.00027857,13]
[419724030,1775335860867,-172.39,0.00027857,13]
[419724031,1775335860876,-172.38,0.00027857,13]
[419724032,1775335860887,-348.86662286,0.00028003,2]
[419724033,1775335860896,-161.08,0.0002801,14]
[419724034,1775335860907,-161.08,0.0002801,14]
[419724035,1775335860917,-161.08,0.0002801,14]
[419724036,1775335860927,-161.06,0.0002801,14]
[419724037,1775335860939,-270.0455652,0.00028099,2]
[419724038,1775335860948,-172.39,0.00028405,13]
[419724039,1775335860959,-172.39,0.00028405,13]
[419724040,1775335860969,-172.39,0.00028405,13]
[419724041,1775335860978,-172.38,0.00028405,13]
[419724042,1775335860988,-166.08,0.00028493,2]
[419724043,1775335860998,-150.0,0.00028544,2]
[419724044,1775335861009,-515.0,0.00028547,15]
[419724045,1775335861019,-161.08,0.00028558,14]
[419724046,1775335861029,-161.08,0.00028558,14]
[419724047,1775335861040,-161.08,0.00028558,14]
[419724048,1775335861050,-161.06,0.00028558,14]
[419724049,1775335861059,-3027.0,0.000286,2]
[419724050,1775335861071,-280.03725112,0.00028647,2]
[419724051,1775335861081,-1655.32,0.00028766,2]
[419724052,1775335861092,-155.0,0.00028798,2]
[419724053,1775335861102,-960.1,0.0002906,2]
[419724054,1775335861111,-500.0,0.00029123,120]
[419724055,1775335861122,-290.39862941,0.00029195,2]
[419724056,1775335861133,-275.17,0.00029416,2]
[419724057,1775335861142,-1108.26171277,0.00029534,5]
[419724058,1775335861152,-1115.06768824,0.00029534,5]
[419724059,1775335861162,-1030.3828884,0.00029534,5]
[419724060,1775335861172,-1024.58984084,0.00029534,5]
[419724061,1775335861182,-1053.03547967,0.00029534,5]
[419724062,1775335861192,-1064.85851292,0.00029534,5]
[419724063,1775335861202,-1023.84714786,0.00029534,5]
[419724064,1775335861212,-1572.0,0.0002965,3]
[419724065,1775335861223,-162.0,0.0002965,3]
[419724066,1775335861233,-301.1433787,0.00029743,2]
[419724067,1775335861243,-172.39,0.00029775,13]
[419724068,1775335861253,-172.39,0.00029775,13]
[419724069,1775335861263,-172.39,0.00029775,13]
[419724070,1775335861273,-172.37,0.00029775,13]
[419724071,1775335861284,-3521.0,0.00029802,2]
[419724072,1775335861568,-622.0,0.00029802,2]
[419724073,1775335861579,-1046.0,0.00029802,2]
[419724074,1775335861588,-4425.0,0.00029897,2]
[419724075,1775335861597,-151.0,0.00029928,7]
[419724076,1775335861606,-151.0,0.00029928,7]
[419724077,1775335861616,-151.0,0.00029928,7]
[419724078,1775335861625,-151.0,0.00029928,7]
[419724079,1775335861634,-151.0,0.00029928,7]
[419724080,1775335861643,-151.0,0.00029928,7]
[419724081,1775335861653,-151.0,0.00029928,7]
[419724082,1775335861662,-201.529297,0.00029928,7]
[419724083,1775335861671,-151.0,0.00029928,7]
[419724084,1775335861680,-273.978909,0.00029928,7]
[419724085,1775335861689,-161.08,0.00029928,14]
[419724086,1775335861698,-161.08,0.00029928,14]
[419724087,1775335861707,-161.08,0.00029928,14]
[419724088,1775335861717,-161.06,0.00029928,14]
[419724089,1775335861726,-150.0,0.00029971,2]
[419724090,1775335861736,-301.43054426,0.0003,120]
[419724091,1775335861745,-673.62299257,0.000301,120]
[419724092,1775335861754,-166.67238165,0.000301,120]
[419724093,1775335861763,-1000.0,0.00030137,120]
[419724094,1775335861772,-281.07,0.00030137,2]
[419724095,1775335861782,-250.0,0.00030137,2]
[419724096,1775335861791,-380.0,0.00030137,2]
[419724097,1775335861800,-150.0,0.00030137,2]
[419724098,1775335861809,-264.0,0.00030137,2]
[419724099,1775335861818,-250.0,0.00030137,2]
[419724100,1775335861828,-250.0,0.00030137,2]
[419724101,1775335861838,-245.0,0.00030137,2]
[419724102,1775335861848,-416.58596697,0.000308,2]
[419724103,1775335862437,-1583.41403303,0.000308,2]
[419724104,1775335862447,-960.1,0.00030864,2]
[419724105,1775335862456,-515.0,0.0003112,17]
[419724106,1775335862466,-2000.0,0.000312,2]
[419724107,1775335862475,-500.0,0.00031342,2]
[419724108,1775335862484,-150.0,0.0003147,2]
[419724109,1775335862493,-275.17,0.00031579,30]
[419724110,1775335862503,-348.86662286,0.0003176,2]
[419724111,1775335862512,-3890.0,0.000319,2]
[419724112,1775335862521,-1523.365646,0.00031935,7]
[419724113,1775335862530,-1523.365646,0.00031935,7]
[419724114,1775335862539,-757.82082052,0.00031935,7]
[419724115,1775335862551,-765.54482548,0.00031935,7]
[419724116,1775335862560,-1523.365646,0.00031935,7]
[419724117,1775335862569,-335.3237179,0.00032,120]
[419724118,1775335862579,-331.42057814,0.0003229,2]